{"text_format":"1","workbook":"xlsx","n_sheets":6,"sheets":["ДК","Пикетаж","Сотрудники","Карта подбора","КлассМарка","Норматив"],"not_rendered":{"charts":0,"images":3,"macros":1,"external_links":0,"defined_names":3,"comments":0,"pivot_tables":0},"unopened":[],"bounds":{"document_bytes":16777216,"sheet_cells":100000,"rows_first":2000,"rows_last":500,"rows_between":2000,"halvings":0,"cell_chars":16384,"cell_head_chars":4096},"cells_cut":0,"cells_raw":0,"read":"whole","date_system":"1900"}

{"sheet":"ДК","index":0,"n_rows":72,"n_cols":57,"rows_kept":72,"cut":false,"hidden":false,"merged":[[17,37,17,49],[17,24,17,36],[29,1,29,32],[25,1,25,49],[0,15,5,41],[19,1,19,23],[21,1,21,23],[21,24,21,49],[19,24,19,49],[7,1,7,23],[8,1,8,23],[7,24,8,49],[15,1,15,23],[17,1,17,23],[10,1,10,23],[11,1,11,23],[10,24,11,49],[13,1,13,23],[71,0,72,49],[62,1,62,33],[62,34,62,49],[48,1,48,33],[48,34,48,49],[50,1,50,49],[52,1,52,33],[54,1,54,33],[52,34,52,49],[54,34,54,49],[60,31,60,37],[68,0,68,49],[60,38,60,49],[23,1,23,23],[23,24,23,49],[56,1,56,33],[56,34,56,49],[35,1,35,49],[36,1,36,49],[38,1,38,49],[40,1,40,27],[43,1,43,27],[43,28,43,32],[43,35,43,49],[40,35,40,49],[41,35,41,49],[33,1,33,23],[33,24,33,49],[13,24,13,49],[58,1,58,41],[58,42,58,49],[44,28,44,32],[44,35,44,49],[46,1,46,33],[46,34,46,49],[41,28,41,32],[40,28,40,32],[28,1,28,32],[15,24,15,49],[31,35,31,49],[31,1,31,34],[26,1,26,30],[26,31,26,49],[28,33,29,49]]}
[null,null,null,null,null,null,null,null,null,null,null,null,null,null,null,{"$f":"\"ДОКУМЕНТ О КАЧЕСТВЕ\"&CHAR(10)&IF($AZ$2=\"Бетонная смесь\",\"БЕТОННОЙ СМЕСИ\",\"РАСТВОРНОЙ СМЕСИ\")&CHAR(10)&\"ЗАДАННОГО КАЧЕСТВА ПАРТИИ № \"&$AZ$1&\"\"","v":"ДОКУМЕНТ О КАЧЕСТВЕ\nРАСТВОРНОЙ СМЕСИ\nЗАДАННОГО КАЧЕСТВА ПАРТИИ № "}]
[null,null,null,null,null,null,null,null,null,null,null,null,null,null,null,null,null,null,null,null,null,null,null,null,null,null,null,null,null,null,null,null,null,null,null,null,null,null,null,null,null,null,null,null,null,null,null,null,null,null,null,"Растворная смесь"]
[]
[]
[]
[]
[]
[null,{"$f":"IF($AZ$2=\"Бетонная смесь\",\"Производитель и поставщик бетонной смеси:\",\"Производитель и поставщик растворной смеси:\")","v":"Производитель и поставщик растворной смеси:"}]
[null,"(наименование, адрес, телефон, факс)"]
[]
[null,"Потребитель:"]
[null,"(наименование, адрес, телефон, факс)"]
[]
[null,"Адрес объекта: "]
[]
[null,"Вид конструкции по данным заявки:"]
[]
[null,{"$f":"IF($AZ$2=\"Бетонная смесь\",\"Дата и время отгрузки бетонной смеси:\",\"Дата и время отгрузки растворной смеси:\")","v":"Дата и время отгрузки растворной смеси:"}]
[]
[null,{"$f":"IF($AZ$2=\"Бетонная смесь\",\"Вид бетонной смеси и ее условное обозначение:\",\"Вид растворной смеси и ее условное обозначение:\")","v":"Вид растворной смеси и ее условное обозначение:"}]
[]
[null,{"$f":"IF($AZ$2=\"Бетонная смесь\",\"Номер номинального состава бетонной смеси:\",\"Номер номинального состава растворной смеси:\")","v":"Номер номинального состава растворной смеси:"},null,null,null,null,null,null,null,null,null,null,null,null,null,null,null,null,null,null,null,null,null,null,{"$f":"INDEX(Карта[Карта подбора],MATCH($Y$20,Карта[Условное обозначение],0))","v":{"$error":"#N/A"}},null,null,null,null,null,null,null,null,null,null,null,null,null,null,null,null,null,null,null,null,null,null,null,null,null,null,null,null,null,null,null,"³"]
[]
[null,{"$f":"IF(AZ2=AZ2,\"Объем бетонной смеси в партии, м³:\",\"Объем растворной смеси в партии, м³:\")","v":"Объем бетонной смеси в партии, м³:"}]
[]
[null,{"$f":"IF($AZ$2=\"Бетонная смесь\",\"Марка бетонной смеси по удобоукладываемости или значение удобоукладываемости бетонной смеси\",\"Марка растворной смеси по удобоукладываемости или значение удобоукладываемости растворной смеси\")","v":"Марка растворной смеси по удобоукладываемости или значение удобоукладываемости растворной смеси"}]
[null,"(по договору на поставку) на месте укладки у потребителя:",null,null,null,null,null,null,null,null,null,null,null,null,null,null,null,null,null,null,null,null,null,null,null,null,null,null,null,null,null,{"$f":"INDEX(Карта[Характеристика],MATCH($Y$20,Карта[Условное обозначение],0))","v":{"$error":"#N/A"}}]
[]
[null,"Другие нормируемые показатели качества на месте укладки",null,null,null,null,null,null,null,null,null,null,null,null,null,null,null,null,null,null,null,null,null,null,null,null,null,null,null,null,null,null,null,{"$f":"INDEX(Карта[Содержание],MATCH($Y$20,Карта[Условное обозначение],0))","v":{"$error":"#N/A"}}]
[null,"у потребителя (объём вовлеченного воздуха в бетонной смеси), %:"]
[]
[null,"Сохраняемость удобоукладываемости и других нормируемых показателей, ч-мин:",null,null,null,null,null,null,null,null,null,null,null,null,null,null,null,null,null,null,null,null,null,null,null,null,null,null,null,null,null,null,null,null,null,{"$f":"INDEX(Карта[Сохраняемость],MATCH($Y$20,Карта[Условное обозначение],0))","v":{"$error":"#N/A"}}]
[]
[null,"Наибольшая крупность заполнителя, мм:",null,null,null,null,null,null,null,null,null,null,null,null,null,null,null,null,null,null,null,null,null,null,"20мм"]
[]
[null,{"$f":"IF($AZ$2=\"Бетонная смесь\",\"Знак соответствия (в случае, когда бетонная смесь сертифицирована на соответствие теребованиям стандарта):\",\"Знак соответствия (в случае, когда растворная смесь сертифицирована на соответствие теребованиям стандарта):\")","v":"Знак соответствия (в случае, когда растворная смесь сертифицирована на соответствие теребованиям стандарта):"}]
[null,"Декларация о соответствии № POCC RU Д-RU.РА01.В.50830/23"]
[]
[null,{"$f":"IF($AZ$2=\"Бетонная смесь\",\"Проектный класс бетона по прочности и требуемая прочность бетона в партии:\",\"Проектная марка раствора по прочности и требуемая прочность раствора в партии:\")","v":"Проектная марка раствора по прочности и требуемая прочность раствора в партии:"}]
[]
[null,"- в проектном возрасте: 28 суток",null,null,null,null,null,null,null,null,null,null,null,null,null,null,null,null,null,null,null,null,null,null,null,null,null,null,{"$f":"INDEX(Карта[Класс],MATCH($Y$20,Карта[Условное обозначение],0))","v":{"$error":"#N/A"}},null,null,null,null,null,null,{"$f":"INDEX(Карта[Прочность],MATCH($Y$20,Карта[Условное обозначение],0))","v":{"$error":"#N/A"}}]
[null,null,null,null,null,null,null,null,null,null,null,null,null,null,null,null,null,null,null,null,null,null,null,null,null,null,null,null,{"$f":"IF($AZ$2=\"Бетонная смесь\",\"класс прочности\",\"марка по прочности\")","v":"марка по прочности"},null,null,null,null,null,null,"требуемая прочность (по договору на поставку)"]
[]
[null,"- в промежуточном возрасте: - суток",null,null,null,null,null,null,null,null,null,null,null,null,null,null,null,null,null,null,null,null,null,null,null,null,null,null,"-",null,null,null,null,null,null,{"$f":"INDEX(Карта[Промежуточная прочность],MATCH($Y$20,Карта[Условное обозначение],0))","v":{"$error":"#N/A"}}]
[null,null,null,null,null,null,null,null,null,null,null,null,null,null,null,null,null,null,null,null,null,null,null,null,null,null,null,null,{"$f":"IF($AZ$2=\"Бетонная смесь\",\"класс прочности\",\"марка по прочности\")","v":"марка по прочности"},null,null,null,null,null,null,"требуемая прочность (по договору на поставку)"]
[]
[null,{"$f":"IF(AZ2=AZ2,\"Другие нормируемые показатели качества бетона (при необходимости):\",\"Другие нормируемые показатели качества раствора (при необходимости):\")","v":"Другие нормируемые показатели качества бетона (при необходимости):"},null,null,null,null,null,null,null,null,null,null,null,null,null,null,null,null,null,null,null,null,null,null,null,null,null,null,null,null,null,null,null,null,{"$f":"INDEX(Карта[Сокращение],MATCH($Y$20,Карта[Условное обозначение],0))","v":{"$error":"#N/A"}}]
[]
[null,"Проектная марка бетона по средней плотности (для легкого бетона):",null,null,null,null,null,null,null,null,null,null,null,null,null,null,null,null,null,null,null,null,null,null,null,null,null,null,null,null,null,null,null,null,"-"]
[]
[null,"Наименование и масса добавки (по товарному продукту), кг/м3: "]
[]
[null,{"$f":"INDEX(Карта[Наименование],MATCH($Y$20,Карта[Условное обозначение],-1))","v":{"$error":"#N/A"}},null,null,null,null,null,null,null,null,null,null,null,null,null,null,null,null,null,null,null,null,null,null,null,null,null,null,null,null,null,null,null,null,{"$f":"INDEX(Карта[кг, расход],MATCH($Y$20,Карта[Условное обозначение],0))","v":{"$error":"#N/A"}}]
[]
[null,{"$f":"INDEX(Карта[Наименование2],MATCH($Y$20,Карта[Условное обозначение],-1))","v":{"$error":"#N/A"}},null,null,null,null,null,null,null,null,null,null,null,null,null,null,null,null,null,null,null,null,null,null,null,null,null,null,null,null,null,null,null,null,{"$f":"INDEX(Карта[кг, расход3],MATCH($Y$20,Карта[Условное обозначение],0))","v":{"$error":"#N/A"}}]
[]
[]
[]
[null,"Класс материалов по удельной эффективной активности естественных радионуклидов, Бк/кг:"]
[]
[null,null,null,null,null,null,null,null,null,null,null,null,null,null,null,null,null,null,null,null,null,null,null,null,null,null,null,null,null,null,null,"Дата выдачи: ",null,null,null,null,null,null,{"$f":"Y18","v":"00:00:00"}]
[]
[null,{"$f":"INDEX(Сотрудники!C3:C12,MATCH($AI$63,Сотрудники!B3:B12,-1))","v":{"$error":"#N/A"}}]
[]
[null,null,null,null,null,null,null,null,null,null,null,null,null,null,null,null,null,null,null,null,null,null,null,null,null,null,null,null,null,null,null," "]
[]
[]
[]
[]
[]
[]
["Примечание: предприятие гарантирует требуемую прочность бетона в возрасте 28 суток при соблюдении условий и времени транспортировки бетонной смеси до места укладки, выполнения требований действующих нормативно-технической документации по бетонированию конструкций и соблюдении условий твердения бетона"]

{"sheet":"Пикетаж","index":1,"n_rows":14,"n_cols":2,"rows_kept":14,"cut":false,"hidden":false,"merged":[]}
[]
[null,"Пикетаж"]
[null,"ИССО №4 ПК955+77,65"]
[null,"ИССО №5 ПК979+13,40"]
[null,"ИССО №6 ПК991+50,00"]
[null,"ИССО №10 ПК1050+76,00"]
[null,"ИССО №11 ПК1057+77,69"]
[null,"ИССО №12 ПК1077+14,93"]
[null,"ИССО №13 ПК1091+80,00"]
[null,"ИССО №15 ПК1127+43,41"]
[null,"ИССО №18 ПК1215+50,00"]
[null,"ИССО №19 ПК1238+75,00"]
[null,"ИССО №20 ПК1264+34,80"]
[null,"ИССО №22 ПК1304+18,35"]

{"sheet":"Сотрудники","index":2,"n_rows":11,"n_cols":3,"rows_kept":11,"cut":false,"hidden":false,"merged":[]}
[]
[null,"Ф.И.О.","Должность"]
[null,"/ И.П. Собакин /"]
[null,"/ О.В. Горячева /"]
[null,"/ А.И. Бахтияров /"]
[null,"/ Г.П. Перевера /"]
[null,"/ Е.Н. Антонов /"]
[null,"/ А.Э. Тыринов /"]
[null,"/ А.З. Галеев /"]
[null,"/ Н.Р. Салахов /"]
[null,"/ Ю.А. Именитова /"]

{"sheet":"Карта подбора","index":3,"n_rows":26,"n_cols":19,"rows_kept":26,"cut":false,"hidden":false,"merged":[[1,8,1,10],[1,11,1,13]]}
[null,null,null,null,"Бетонная смесь",1.28]
[null,null,null,null,"Растворная смесь",9.8000000000000004E-2,null,null,"Ритент Ультра",null,null,"Ритент Аэр"]
["Класс","Вид смеси","Условное обозначение","Сокращение","Карта подбора","Прочность","Промежуточная прочность","Расход цемента","Наименование","%, расход","кг, расход","Наименование2","%, расход2","кг, расход3","Радионуклиды, Бк/кг","Подвижность","Характеристика","Содержание","Сохраняемость"]
[{"$f":"IFERROR(IF(Карта[[#This Row],[Вид смеси]]=\"Бетонная смесь\",TRIM(LEFTB(SUBSTITUTE(MID(Карта[[#This Row],[Условное обозначение]],SEARCH(\" \",Карта[[#This Row],[Условное обозначение]])+1,99),\" \",REPT(\" \",99)),99)),TRIM(LEFTB(MID(Карта[[#This Row],[Условное обозначение]],SEARCH(\"М\",Карта[[#This Row],[Условное обозначение]])+0,99),SEARCH(\" П\",MID(Карта[[#This Row],[Условное обозначение]],SEARCH(\"М\",Карта[[#This Row],[Условное обозначение]])+0,99))))),\"-\")","v":"В7,5"},"Бетонная смесь","БСТ В7,5 П4 F₁50 W4 ГОСТ 7473-2010",{"$f":"IF(Карта[[#This Row],[Условное обозначение]]=\"\",\"\",IF(Карта[[#This Row],[Вид смеси]]=\"Бетонная смесь\",LEFTB(MID(Карта[[#This Row],[Условное обозначение]],SEARCH(\"F\",Карта[[#This Row],[Условное обозначение]])+0,99),SEARCH(\" Г\",MID(Карта[[#This Row],[Условное обозначение]],SEARCH(\"F\",Карта[[#This Row],[Условное обозначение]])+0,99))),LEFTB(MID(Карта[[#This Row],[Условное обозначение]],SEARCH(\"М\",Карта[[#This Row],[Условное обозначение]])+0,99),SEARCH(\" П\",MID(Карта[[#This Row],[Условное обозначение]],SEARCH(\"М\",Карта[[#This Row],[Условное обозначение]])+0,99)))))","v":"F₁50 W4 "},"К.П №1 МТС/У",{"$f":"IFERROR(IF(Карта[[#This Row],[Вид смеси]]=\"Бетонная смесь\",ROUND(RIGHT(Карта[[#This Row],[Класс]],LEN(Карта[[#This Row],[Класс]])-1)*$F$1,2),ROUND(RIGHT(Карта[[#This Row],[Класс]],LEN(Карта[[#This Row],[Класс]])-1)*$F$2,2)),\"-\")","v":9.6},{"$f":"IF(Карта[[#This Row],[Условное обозначение]]=\"\",\"\",Карта[[#This Row],[Прочность]]*70%)","v":6.72},220,{"$f":"IF(Карта[[#This Row],[Условное обозначение]]=\"\",\"\",$I$2)","v":"Ритент Ультра"},0.7,{"$f":"IF(Карта[[#This Row],[Условное обозначение]]=\"\",\"\",Карта[[#This Row],[Расход цемента]]*Карта[[#This Row],[%, расход]]/100)","v":1.54},{"$f":"IF(Карта[[#This Row],[Условное обозначение]]=\"\",\"\",$L$2)","v":"Ритент Аэр"},0.1,{"$f":"IF(Карта[[#This Row],[Условное обозначение]]=\"\",\"\",Карта[[#This Row],[Расход цемента]]*Карта[[#This Row],[%, расход2]]/100)","v":0.22},265.7,{"$f":"IFERROR(IF(Карта[[#This Row],[Вид смеси]]=\"Бетонная смесь\",LEFTB(MID(Карта[[#This Row],[Условное обозначение]],SEARCH(\"П\",Карта[[#This Row],[Условное обозначение]])+0,99),SEARCH(\" F\",MID(Карта[[#This Row],[Условное обозначение]],SEARCH(\"П\",Карта[[#This Row],[Условное обозначение]])+0,99))),LEFTB(MID(Карта[[#This Row],[Условное обозначение]],SEARCH(\"П\",Карта[[#This Row],[Условное обозначение]])+0,99),SEARCH(\" Г\",MID(Карта[[#This Row],[Условное обозначение]],SEARCH(\"П\",Карта[[#This Row],[Условное обозначение]])+0,99)))),\"-\")","v":"П4 "},{"$f":"IFERROR(INDEX(Норматив[Параметры],MATCH(Карта[[#This Row],[Подвижность]],Норматив[Характеристика],1)),\"-\")","v":"П4 (16-20 см)"},{"$f":"IF(Карта[[#This Row],[Вид смеси]]=\"Бетонная смесь\",\"воздухововлечение - 4-6%\",\"-\")","v":"воздухововлечение - 4-6%"},"От 1ч 30 мин до 3ч 00 мин"]
[{"$f":"IFERROR(IF(Карта[[#This Row],[Вид смеси]]=\"Бетонная смесь\",TRIM(LEFTB(SUBSTITUTE(MID(Карта[[#This Row],[Условное обозначение]],SEARCH(\" \",Карта[[#This Row],[Условное обозначение]])+1,99),\" \",REPT(\" \",99)),99)),TRIM(LEFTB(MID(Карта[[#This Row],[Условное обозначение]],SEARCH(\"М\",Карта[[#This Row],[Условное обозначение]])+0,99),SEARCH(\" П\",MID(Карта[[#This Row],[Условное обозначение]],SEARCH(\"М\",Карта[[#This Row],[Условное обозначение]])+0,99))))),\"-\")","v":"В15"},"Бетонная смесь","БСТ В15 П4 F₁75 W4 ГОСТ 7473-2010",{"$f":"IF(Карта[[#This Row],[Условное обозначение]]=\"\",\"\",IF(Карта[[#This Row],[Вид смеси]]=\"Бетонная смесь\",LEFTB(MID(Карта[[#This Row],[Условное обозначение]],SEARCH(\"F\",Карта[[#This Row],[Условное обозначение]])+0,99),SEARCH(\" Г\",MID(Карта[[#This Row],[Условное обозначение]],SEARCH(\"F\",Карта[[#This Row],[Условное обозначение]])+0,99))),LEFTB(MID(Карта[[#This Row],[Условное обозначение]],SEARCH(\"М\",Карта[[#This Row],[Условное обозначение]])+0,99),SEARCH(\" П\",MID(Карта[[#This Row],[Условное обозначение]],SEARCH(\"М\",Карта[[#This Row],[Условное обозначение]])+0,99)))))","v":"F₁75 W4 "},"К.П №2 МТС/У",{"$f":"IFERROR(IF(Карта[[#This Row],[Вид смеси]]=\"Бетонная смесь\",ROUND(RIGHT(Карта[[#This Row],[Класс]],LEN(Карта[[#This Row],[Класс]])-1)*$F$1,2),ROUND(RIGHT(Карта[[#This Row],[Класс]],LEN(Карта[[#This Row],[Класс]])-1)*$F$2,2)),\"-\")","v":19.2},{"$f":"IF(Карта[[#This Row],[Условное обозначение]]=\"\",\"\",Карта[[#This Row],[Прочность]]*70%)","v":13.44},260,{"$f":"IF(Карта[[#This Row],[Условное обозначение]]=\"\",\"\",$I$2)","v":"Ритент Ультра"},0.7,{"$f":"IF(Карта[[#This Row],[Условное обозначение]]=\"\",\"\",Карта[[#This Row],[Расход цемента]]*Карта[[#This Row],[%, расход]]/100)","v":1.82},{"$f":"IF(Карта[[#This Row],[Условное обозначение]]=\"\",\"\",$L$2)","v":"Ритент Аэр"},0.1,{"$f":"IF(Карта[[#This Row],[Условное обозначение]]=\"\",\"\",Карта[[#This Row],[Расход цемента]]*Карта[[#This Row],[%, расход2]]/100)","v":0.26},265.7,{"$f":"IFERROR(IF(Карта[[#This Row],[Вид смеси]]=\"Бетонная смесь\",LEFTB(MID(Карта[[#This Row],[Условное обозначение]],SEARCH(\"П\",Карта[[#This Row],[Условное обозначение]])+0,99),SEARCH(\" F\",MID(Карта[[#This Row],[Условное обозначение]],SEARCH(\"П\",Карта[[#This Row],[Условное обозначение]])+0,99))),LEFTB(MID(Карта[[#This Row],[Условное обозначение]],SEARCH(\"П\",Карта[[#This Row],[Условное обозначение]])+0,99),SEARCH(\" Г\",MID(Карта[[#This Row],[Условное обозначение]],SEARCH(\"П\",Карта[[#This Row],[Условное обозначение]])+0,99)))),\"-\")","v":"П4 "},{"$f":"IFERROR(INDEX(Норматив[Параметры],MATCH(Карта[[#This Row],[Подвижность]],Норматив[Характеристика],1)),\"-\")","v":"П4 (16-20 см)"},{"$f":"IF(Карта[[#This Row],[Вид смеси]]=\"Бетонная смесь\",\"воздухововлечение - 4-6%\",\"-\")","v":"воздухововлечение - 4-6%"},"От 1ч 30 мин до 3ч 00 мин"]
[{"$f":"IFERROR(IF(Карта[[#This Row],[Вид смеси]]=\"Бетонная смесь\",TRIM(LEFTB(SUBSTITUTE(MID(Карта[[#This Row],[Условное обозначение]],SEARCH(\" \",Карта[[#This Row],[Условное обозначение]])+1,99),\" \",REPT(\" \",99)),99)),TRIM(LEFTB(MID(Карта[[#This Row],[Условное обозначение]],SEARCH(\"М\",Карта[[#This Row],[Условное обозначение]])+0,99),SEARCH(\" П\",MID(Карта[[#This Row],[Условное обозначение]],SEARCH(\"М\",Карта[[#This Row],[Условное обозначение]])+0,99))))),\"-\")","v":"В20"},"Бетонная смесь","БСТ В20 П4 F₂300 W12 ГОСТ 7473-2010",{"$f":"IF(Карта[[#This Row],[Условное обозначение]]=\"\",\"\",IF(Карта[[#This Row],[Вид смеси]]=\"Бетонная смесь\",LEFTB(MID(Карта[[#This Row],[Условное обозначение]],SEARCH(\"F\",Карта[[#This Row],[Условное обозначение]])+0,99),SEARCH(\" Г\",MID(Карта[[#This Row],[Условное обозначение]],SEARCH(\"F\",Карта[[#This Row],[Условное обозначение]])+0,99))),LEFTB(MID(Карта[[#This Row],[Условное обозначение]],SEARCH(\"М\",Карта[[#This Row],[Условное обозначение]])+0,99),SEARCH(\" П\",MID(Карта[[#This Row],[Условное обозначение]],SEARCH(\"М\",Карта[[#This Row],[Условное обозначение]])+0,99)))))","v":"F₂300 W12 "},"К.П №11 МТС/У",{"$f":"IFERROR(IF(Карта[[#This Row],[Вид смеси]]=\"Бетонная смесь\",ROUND(RIGHT(Карта[[#This Row],[Класс]],LEN(Карта[[#This Row],[Класс]])-1)*$F$1,2),ROUND(RIGHT(Карта[[#This Row],[Класс]],LEN(Карта[[#This Row],[Класс]])-1)*$F$2,2)),\"-\")","v":25.6},{"$f":"IF(Карта[[#This Row],[Условное обозначение]]=\"\",\"\",Карта[[#This Row],[Прочность]]*70%)","v":17.919999999999998},420,{"$f":"IF(Карта[[#This Row],[Условное обозначение]]=\"\",\"\",$I$2)","v":"Ритент Ультра"},1,{"$f":"IF(Карта[[#This Row],[Условное обозначение]]=\"\",\"\",Карта[[#This Row],[Расход цемента]]*Карта[[#This Row],[%, расход]]/100)","v":4.2},{"$f":"IF(Карта[[#This Row],[Условное обозначение]]=\"\",\"\",$L$2)","v":"Ритент Аэр"},0.15,{"$f":"IF(Карта[[#This Row],[Условное обозначение]]=\"\",\"\",Карта[[#This Row],[Расход цемента]]*Карта[[#This Row],[%, расход2]]/100)","v":0.63},265.7,{"$f":"IFERROR(IF(Карта[[#This Row],[Вид смеси]]=\"Бетонная смесь\",LEFTB(MID(Карта[[#This Row],[Условное обозначение]],SEARCH(\"П\",Карта[[#This Row],[Условное обозначение]])+0,99),SEARCH(\" F\",MID(Карта[[#This Row],[Условное обозначение]],SEARCH(\"П\",Карта[[#This Row],[Условное обозначение]])+0,99))),LEFTB(MID(Карта[[#This Row],[Условное обозначение]],SEARCH(\"П\",Карта[[#This Row],[Условное обозначение]])+0,99),SEARCH(\" Г\",MID(Карта[[#This Row],[Условное обозначение]],SEARCH(\"П\",Карта[[#This Row],[Условное обозначение]])+0,99)))),\"-\")","v":"П4 "},{"$f":"IFERROR(INDEX(Норматив[Параметры],MATCH(Карта[[#This Row],[Подвижность]],Норматив[Характеристика],1)),\"-\")","v":"П4 (16-20 см)"},{"$f":"IF(Карта[[#This Row],[Вид смеси]]=\"Бетонная смесь\",\"воздухововлечение - 4-6%\",\"-\")","v":"воздухововлечение - 4-6%"},"От 1ч 30 мин до 3ч 00 мин"]
[{"$f":"IFERROR(IF(Карта[[#This Row],[Вид смеси]]=\"Бетонная смесь\",TRIM(LEFTB(SUBSTITUTE(MID(Карта[[#This Row],[Условное обозначение]],SEARCH(\" \",Карта[[#This Row],[Условное обозначение]])+1,99),\" \",REPT(\" \",99)),99)),TRIM(LEFTB(MID(Карта[[#This Row],[Условное обозначение]],SEARCH(\"М\",Карта[[#This Row],[Условное обозначение]])+0,99),SEARCH(\" П\",MID(Карта[[#This Row],[Условное обозначение]],SEARCH(\"М\",Карта[[#This Row],[Условное обозначение]])+0,99))))),\"-\")","v":"В25"},"Бетонная смесь","БСТ В25 П4 F₁200 W8 ГОСТ 7473-2010",{"$f":"IF(Карта[[#This Row],[Условное обозначение]]=\"\",\"\",IF(Карта[[#This Row],[Вид смеси]]=\"Бетонная смесь\",LEFTB(MID(Карта[[#This Row],[Условное обозначение]],SEARCH(\"F\",Карта[[#This Row],[Условное обозначение]])+0,99),SEARCH(\" Г\",MID(Карта[[#This Row],[Условное обозначение]],SEARCH(\"F\",Карта[[#This Row],[Условное обозначение]])+0,99))),LEFTB(MID(Карта[[#This Row],[Условное обозначение]],SEARCH(\"М\",Карта[[#This Row],[Условное обозначение]])+0,99),SEARCH(\" П\",MID(Карта[[#This Row],[Условное обозначение]],SEARCH(\"М\",Карта[[#This Row],[Условное обозначение]])+0,99)))))","v":"F₁200 W8 "},"К.П №3 МТС/У",{"$f":"IFERROR(IF(Карта[[#This Row],[Вид смеси]]=\"Бетонная смесь\",ROUND(RIGHT(Карта[[#This Row],[Класс]],LEN(Карта[[#This Row],[Класс]])-1)*$F$1,2),ROUND(RIGHT(Карта[[#This Row],[Класс]],LEN(Карта[[#This Row],[Класс]])-1)*$F$2,2)),\"-\")","v":32},{"$f":"IF(Карта[[#This Row],[Условное обозначение]]=\"\",\"\",Карта[[#This Row],[Прочность]]*70%)","v":22.4},320,{"$f":"IF(Карта[[#This Row],[Условное обозначение]]=\"\",\"\",$I$2)","v":"Ритент Ультра"},0.7,{"$f":"IF(Карта[[#This Row],[Условное обозначение]]=\"\",\"\",Карта[[#This Row],[Расход цемента]]*Карта[[#This Row],[%, расход]]/100)","v":2.2400000000000002},{"$f":"IF(Карта[[#This Row],[Условное обозначение]]=\"\",\"\",$L$2)","v":"Ритент Аэр"},0.1,{"$f":"IF(Карта[[#This Row],[Условное обозначение]]=\"\",\"\",Карта[[#This Row],[Расход цемента]]*Карта[[#This Row],[%, расход2]]/100)","v":0.32},265.7,{"$f":"IFERROR(IF(Карта[[#This Row],[Вид смеси]]=\"Бетонная смесь\",LEFTB(MID(Карта[[#This Row],[Условное обозначение]],SEARCH(\"П\",Карта[[#This Row],[Условное обозначение]])+0,99),SEARCH(\" F\",MID(Карта[[#This Row],[Условное обозначение]],SEARCH(\"П\",Карта[[#This Row],[Условное обозначение]])+0,99))),LEFTB(MID(Карта[[#This Row],[Условное обозначение]],SEARCH(\"П\",Карта[[#This Row],[Условное обозначение]])+0,99),SEARCH(\" Г\",MID(Карта[[#This Row],[Условное обозначение]],SEARCH(\"П\",Карта[[#This Row],[Условное обозначение]])+0,99)))),\"-\")","v":"П4 "},{"$f":"IFERROR(INDEX(Норматив[Параметры],MATCH(Карта[[#This Row],[Подвижность]],Норматив[Характеристика],1)),\"-\")","v":"П4 (16-20 см)"},{"$f":"IF(Карта[[#This Row],[Вид смеси]]=\"Бетонная смесь\",\"воздухововлечение - 4-6%\",\"-\")","v":"воздухововлечение - 4-6%"},"От 1ч 30 мин до 3ч 00 мин"]
[{"$f":"IFERROR(IF(Карта[[#This Row],[Вид смеси]]=\"Бетонная смесь\",TRIM(LEFTB(SUBSTITUTE(MID(Карта[[#This Row],[Условное обозначение]],SEARCH(\" \",Карта[[#This Row],[Условное обозначение]])+1,99),\" \",REPT(\" \",99)),99)),TRIM(LEFTB(MID(Карта[[#This Row],[Условное обозначение]],SEARCH(\"М\",Карта[[#This Row],[Условное обозначение]])+0,99),SEARCH(\" П\",MID(Карта[[#This Row],[Условное обозначение]],SEARCH(\"М\",Карта[[#This Row],[Условное обозначение]])+0,99))))),\"-\")","v":"В25"},"Бетонная смесь","БСТ В25 П4 F₁300 W8 ГОСТ 7473-2010",{"$f":"IF(Карта[[#This Row],[Условное обозначение]]=\"\",\"\",IF(Карта[[#This Row],[Вид смеси]]=\"Бетонная смесь\",LEFTB(MID(Карта[[#This Row],[Условное обозначение]],SEARCH(\"F\",Карта[[#This Row],[Условное обозначение]])+0,99),SEARCH(\" Г\",MID(Карта[[#This Row],[Условное обозначение]],SEARCH(\"F\",Карта[[#This Row],[Условное обозначение]])+0,99))),LEFTB(MID(Карта[[#This Row],[Условное обозначение]],SEARCH(\"М\",Карта[[#This Row],[Условное обозначение]])+0,99),SEARCH(\" П\",MID(Карта[[#This Row],[Условное обозначение]],SEARCH(\"М\",Карта[[#This Row],[Условное обозначение]])+0,99)))))","v":"F₁300 W8 "},"К.П №9 МТС/У",{"$f":"IFERROR(IF(Карта[[#This Row],[Вид смеси]]=\"Бетонная смесь\",ROUND(RIGHT(Карта[[#This Row],[Класс]],LEN(Карта[[#This Row],[Класс]])-1)*$F$1,2),ROUND(RIGHT(Карта[[#This Row],[Класс]],LEN(Карта[[#This Row],[Класс]])-1)*$F$2,2)),\"-\")","v":32},{"$f":"IF(Карта[[#This Row],[Условное обозначение]]=\"\",\"\",Карта[[#This Row],[Прочность]]*70%)","v":22.4},360,{"$f":"IF(Карта[[#This Row],[Условное обозначение]]=\"\",\"\",$I$2)","v":"Ритент Ультра"},1,{"$f":"IF(Карта[[#This Row],[Условное обозначение]]=\"\",\"\",Карта[[#This Row],[Расход цемента]]*Карта[[#This Row],[%, расход]]/100)","v":3.6},{"$f":"IF(Карта[[#This Row],[Условное обозначение]]=\"\",\"\",$L$2)","v":"Ритент Аэр"},0.15,{"$f":"IF(Карта[[#This Row],[Условное обозначение]]=\"\",\"\",Карта[[#This Row],[Расход цемента]]*Карта[[#This Row],[%, расход2]]/100)","v":0.54},265.7,{"$f":"IFERROR(IF(Карта[[#This Row],[Вид смеси]]=\"Бетонная смесь\",LEFTB(MID(Карта[[#This Row],[Условное обозначение]],SEARCH(\"П\",Карта[[#This Row],[Условное обозначение]])+0,99),SEARCH(\" F\",MID(Карта[[#This Row],[Условное обозначение]],SEARCH(\"П\",Карта[[#This Row],[Условное обозначение]])+0,99))),LEFTB(MID(Карта[[#This Row],[Условное обозначение]],SEARCH(\"П\",Карта[[#This Row],[Условное обозначение]])+0,99),SEARCH(\" Г\",MID(Карта[[#This Row],[Условное обозначение]],SEARCH(\"П\",Карта[[#This Row],[Условное обозначение]])+0,99)))),\"-\")","v":"П4 "},{"$f":"IFERROR(INDEX(Норматив[Параметры],MATCH(Карта[[#This Row],[Подвижность]],Норматив[Характеристика],1)),\"-\")","v":"П4 (16-20 см)"},{"$f":"IF(Карта[[#This Row],[Вид смеси]]=\"Бетонная смесь\",\"воздухововлечение - 4-6%\",\"-\")","v":"воздухововлечение - 4-6%"},"От 1ч 30 мин до 3ч 00 мин"]
[{"$f":"IFERROR(IF(Карта[[#This Row],[Вид смеси]]=\"Бетонная смесь\",TRIM(LEFTB(SUBSTITUTE(MID(Карта[[#This Row],[Условное обозначение]],SEARCH(\" \",Карта[[#This Row],[Условное обозначение]])+1,99),\" \",REPT(\" \",99)),99)),TRIM(LEFTB(MID(Карта[[#This Row],[Условное обозначение]],SEARCH(\"М\",Карта[[#This Row],[Условное обозначение]])+0,99),SEARCH(\" П\",MID(Карта[[#This Row],[Условное обозначение]],SEARCH(\"М\",Карта[[#This Row],[Условное обозначение]])+0,99))))),\"-\")","v":"В25"},"Бетонная смесь","БСТ В25 П4 F₂300 W12 ГОСТ 7473-2010",{"$f":"IF(Карта[[#This Row],[Условное обозначение]]=\"\",\"\",IF(Карта[[#This Row],[Вид смеси]]=\"Бетонная смесь\",LEFTB(MID(Карта[[#This Row],[Условное обозначение]],SEARCH(\"F\",Карта[[#This Row],[Условное обозначение]])+0,99),SEARCH(\" Г\",MID(Карта[[#This Row],[Условное обозначение]],SEARCH(\"F\",Карта[[#This Row],[Условное обозначение]])+0,99))),LEFTB(MID(Карта[[#This Row],[Условное обозначение]],SEARCH(\"М\",Карта[[#This Row],[Условное обозначение]])+0,99),SEARCH(\" П\",MID(Карта[[#This Row],[Условное обозначение]],SEARCH(\"М\",Карта[[#This Row],[Условное обозначение]])+0,99)))))","v":"F₂300 W12 "},"К.П №11 МТС/У",{"$f":"IFERROR(IF(Карта[[#This Row],[Вид смеси]]=\"Бетонная смесь\",ROUND(RIGHT(Карта[[#This Row],[Класс]],LEN(Карта[[#This Row],[Класс]])-1)*$F$1,2),ROUND(RIGHT(Карта[[#This Row],[Класс]],LEN(Карта[[#This Row],[Класс]])-1)*$F$2,2)),\"-\")","v":32},{"$f":"IF(Карта[[#This Row],[Условное обозначение]]=\"\",\"\",Карта[[#This Row],[Прочность]]*70%)","v":22.4},420,{"$f":"IF(Карта[[#This Row],[Условное обозначение]]=\"\",\"\",$I$2)","v":"Ритент Ультра"},1,{"$f":"IF(Карта[[#This Row],[Условное обозначение]]=\"\",\"\",Карта[[#This Row],[Расход цемента]]*Карта[[#This Row],[%, расход]]/100)","v":4.2},{"$f":"IF(Карта[[#This Row],[Условное обозначение]]=\"\",\"\",$L$2)","v":"Ритент Аэр"},0.15,{"$f":"IF(Карта[[#This Row],[Условное обозначение]]=\"\",\"\",Карта[[#This Row],[Расход цемента]]*Карта[[#This Row],[%, расход2]]/100)","v":0.63},265.7,{"$f":"IFERROR(IF(Карта[[#This Row],[Вид смеси]]=\"Бетонная смесь\",LEFTB(MID(Карта[[#This Row],[Условное обозначение]],SEARCH(\"П\",Карта[[#This Row],[Условное обозначение]])+0,99),SEARCH(\" F\",MID(Карта[[#This Row],[Условное обозначение]],SEARCH(\"П\",Карта[[#This Row],[Условное обозначение]])+0,99))),LEFTB(MID(Карта[[#This Row],[Условное обозначение]],SEARCH(\"П\",Карта[[#This Row],[Условное обозначение]])+0,99),SEARCH(\" Г\",MID(Карта[[#This Row],[Условное обозначение]],SEARCH(\"П\",Карта[[#This Row],[Условное обозначение]])+0,99)))),\"-\")","v":"П4 "},{"$f":"IFERROR(INDEX(Норматив[Параметры],MATCH(Карта[[#This Row],[Подвижность]],Норматив[Характеристика],1)),\"-\")","v":"П4 (16-20 см)"},{"$f":"IF(Карта[[#This Row],[Вид смеси]]=\"Бетонная смесь\",\"воздухововлечение - 4-6%\",\"-\")","v":"воздухововлечение - 4-6%"},"От 1ч 30 мин до 3ч 00 мин"]
[{"$f":"IFERROR(IF(Карта[[#This Row],[Вид смеси]]=\"Бетонная смесь\",TRIM(LEFTB(SUBSTITUTE(MID(Карта[[#This Row],[Условное обозначение]],SEARCH(\" \",Карта[[#This Row],[Условное обозначение]])+1,99),\" \",REPT(\" \",99)),99)),TRIM(LEFTB(MID(Карта[[#This Row],[Условное обозначение]],SEARCH(\"М\",Карта[[#This Row],[Условное обозначение]])+0,99),SEARCH(\" П\",MID(Карта[[#This Row],[Условное обозначение]],SEARCH(\"М\",Карта[[#This Row],[Условное обозначение]])+0,99))))),\"-\")","v":"В30"},"Бетонная смесь","БСТ В30 П4 F₁200 W6 ГОСТ 7473-2010",{"$f":"IF(Карта[[#This Row],[Условное обозначение]]=\"\",\"\",IF(Карта[[#This Row],[Вид смеси]]=\"Бетонная смесь\",LEFTB(MID(Карта[[#This Row],[Условное обозначение]],SEARCH(\"F\",Карта[[#This Row],[Условное обозначение]])+0,99),SEARCH(\" Г\",MID(Карта[[#This Row],[Условное обозначение]],SEARCH(\"F\",Карта[[#This Row],[Условное обозначение]])+0,99))),LEFTB(MID(Карта[[#This Row],[Условное обозначение]],SEARCH(\"М\",Карта[[#This Row],[Условное обозначение]])+0,99),SEARCH(\" П\",MID(Карта[[#This Row],[Условное обозначение]],SEARCH(\"М\",Карта[[#This Row],[Условное обозначение]])+0,99)))))","v":"F₁200 W6 "},"К.П №9 МСТ/У",{"$f":"IFERROR(IF(Карта[[#This Row],[Вид смеси]]=\"Бетонная смесь\",ROUND(RIGHT(Карта[[#This Row],[Класс]],LEN(Карта[[#This Row],[Класс]])-1)*$F$1,2),ROUND(RIGHT(Карта[[#This Row],[Класс]],LEN(Карта[[#This Row],[Класс]])-1)*$F$2,2)),\"-\")","v":38.4},{"$f":"IF(Карта[[#This Row],[Условное обозначение]]=\"\",\"\",Карта[[#This Row],[Прочность]]*70%)","v":26.88},360,{"$f":"IF(Карта[[#This Row],[Условное обозначение]]=\"\",\"\",$I$2)","v":"Ритент Ультра"},1,{"$f":"IF(Карта[[#This Row],[Условное обозначение]]=\"\",\"\",Карта[[#This Row],[Расход цемента]]*Карта[[#This Row],[%, расход]]/100)","v":3.6},{"$f":"IF(Карта[[#This Row],[Условное обозначение]]=\"\",\"\",$L$2)","v":"Ритент Аэр"},0.15,{"$f":"IF(Карта[[#This Row],[Условное обозначение]]=\"\",\"\",Карта[[#This Row],[Расход цемента]]*Карта[[#This Row],[%, расход2]]/100)","v":0.54},265.7,{"$f":"IFERROR(IF(Карта[[#This Row],[Вид смеси]]=\"Бетонная смесь\",LEFTB(MID(Карта[[#This Row],[Условное обозначение]],SEARCH(\"П\",Карта[[#This Row],[Условное обозначение]])+0,99),SEARCH(\" F\",MID(Карта[[#This Row],[Условное обозначение]],SEARCH(\"П\",Карта[[#This Row],[Условное обозначение]])+0,99))),LEFTB(MID(Карта[[#This Row],[Условное обозначение]],SEARCH(\"П\",Карта[[#This Row],[Условное обозначение]])+0,99),SEARCH(\" Г\",MID(Карта[[#This Row],[Условное обозначение]],SEARCH(\"П\",Карта[[#This Row],[Условное обозначение]])+0,99)))),\"-\")","v":"П4 "},{"$f":"IFERROR(INDEX(Норматив[Параметры],MATCH(Карта[[#This Row],[Подвижность]],Норматив[Характеристика],1)),\"-\")","v":"П4 (16-20 см)"},{"$f":"IF(Карта[[#This Row],[Вид смеси]]=\"Бетонная смесь\",\"воздухововлечение - 4-6%\",\"-\")","v":"воздухововлечение - 4-6%"},"От 1ч 30 мин до 3ч 00 мин"]
[{"$f":"IFERROR(IF(Карта[[#This Row],[Вид смеси]]=\"Бетонная смесь\",TRIM(LEFTB(SUBSTITUTE(MID(Карта[[#This Row],[Условное обозначение]],SEARCH(\" \",Карта[[#This Row],[Условное обозначение]])+1,99),\" \",REPT(\" \",99)),99)),TRIM(LEFTB(MID(Карта[[#This Row],[Условное обозначение]],SEARCH(\"М\",Карта[[#This Row],[Условное обозначение]])+0,99),SEARCH(\" П\",MID(Карта[[#This Row],[Условное обозначение]],SEARCH(\"М\",Карта[[#This Row],[Условное обозначение]])+0,99))))),\"-\")","v":"В30"},"Бетонная смесь","БСТ В30 П4 F₁300 W8 ГОСТ 7473-2010",{"$f":"IF(Карта[[#This Row],[Условное обозначение]]=\"\",\"\",IF(Карта[[#This Row],[Вид смеси]]=\"Бетонная смесь\",LEFTB(MID(Карта[[#This Row],[Условное обозначение]],SEARCH(\"F\",Карта[[#This Row],[Условное обозначение]])+0,99),SEARCH(\" Г\",MID(Карта[[#This Row],[Условное обозначение]],SEARCH(\"F\",Карта[[#This Row],[Условное обозначение]])+0,99))),LEFTB(MID(Карта[[#This Row],[Условное обозначение]],SEARCH(\"М\",Карта[[#This Row],[Условное обозначение]])+0,99),SEARCH(\" П\",MID(Карта[[#This Row],[Условное обозначение]],SEARCH(\"М\",Карта[[#This Row],[Условное обозначение]])+0,99)))))","v":"F₁300 W8 "},"К.П №9 МСТ/У",{"$f":"IFERROR(IF(Карта[[#This Row],[Вид смеси]]=\"Бетонная смесь\",ROUND(RIGHT(Карта[[#This Row],[Класс]],LEN(Карта[[#This Row],[Класс]])-1)*$F$1,2),ROUND(RIGHT(Карта[[#This Row],[Класс]],LEN(Карта[[#This Row],[Класс]])-1)*$F$2,2)),\"-\")","v":38.4},{"$f":"IF(Карта[[#This Row],[Условное обозначение]]=\"\",\"\",Карта[[#This Row],[Прочность]]*70%)","v":26.88},360,{"$f":"IF(Карта[[#This Row],[Условное обозначение]]=\"\",\"\",$I$2)","v":"Ритент Ультра"},1,{"$f":"IF(Карта[[#This Row],[Условное обозначение]]=\"\",\"\",Карта[[#This Row],[Расход цемента]]*Карта[[#This Row],[%, расход]]/100)","v":3.6},{"$f":"IF(Карта[[#This Row],[Условное обозначение]]=\"\",\"\",$L$2)","v":"Ритент Аэр"},0.15,{"$f":"IF(Карта[[#This Row],[Условное обозначение]]=\"\",\"\",Карта[[#This Row],[Расход цемента]]*Карта[[#This Row],[%, расход2]]/100)","v":0.54},265.7,{"$f":"IFERROR(IF(Карта[[#This Row],[Вид смеси]]=\"Бетонная смесь\",LEFTB(MID(Карта[[#This Row],[Условное обозначение]],SEARCH(\"П\",Карта[[#This Row],[Условное обозначение]])+0,99),SEARCH(\" F\",MID(Карта[[#This Row],[Условное обозначение]],SEARCH(\"П\",Карта[[#This Row],[Условное обозначение]])+0,99))),LEFTB(MID(Карта[[#This Row],[Условное обозначение]],SEARCH(\"П\",Карта[[#This Row],[Условное обозначение]])+0,99),SEARCH(\" Г\",MID(Карта[[#This Row],[Условное обозначение]],SEARCH(\"П\",Карта[[#This Row],[Условное обозначение]])+0,99)))),\"-\")","v":"П4 "},{"$f":"IFERROR(INDEX(Норматив[Параметры],MATCH(Карта[[#This Row],[Подвижность]],Норматив[Характеристика],1)),\"-\")","v":"П4 (16-20 см)"},{"$f":"IF(Карта[[#This Row],[Вид смеси]]=\"Бетонная смесь\",\"воздухововлечение - 4-6%\",\"-\")","v":"воздухововлечение - 4-6%"},"От 1ч 30 мин до 3ч 00 мин"]
[{"$f":"IFERROR(IF(Карта[[#This Row],[Вид смеси]]=\"Бетонная смесь\",TRIM(LEFTB(SUBSTITUTE(MID(Карта[[#This Row],[Условное обозначение]],SEARCH(\" \",Карта[[#This Row],[Условное обозначение]])+1,99),\" \",REPT(\" \",99)),99)),TRIM(LEFTB(MID(Карта[[#This Row],[Условное обозначение]],SEARCH(\"М\",Карта[[#This Row],[Условное обозначение]])+0,99),SEARCH(\" П\",MID(Карта[[#This Row],[Условное обозначение]],SEARCH(\"М\",Карта[[#This Row],[Условное обозначение]])+0,99))))),\"-\")","v":"В30"},"Бетонная смесь","БСТ В30 П4 F₂300 W12 ГОСТ 7473-2010",{"$f":"IF(Карта[[#This Row],[Условное обозначение]]=\"\",\"\",IF(Карта[[#This Row],[Вид смеси]]=\"Бетонная смесь\",LEFTB(MID(Карта[[#This Row],[Условное обозначение]],SEARCH(\"F\",Карта[[#This Row],[Условное обозначение]])+0,99),SEARCH(\" Г\",MID(Карта[[#This Row],[Условное обозначение]],SEARCH(\"F\",Карта[[#This Row],[Условное обозначение]])+0,99))),LEFTB(MID(Карта[[#This Row],[Условное обозначение]],SEARCH(\"М\",Карта[[#This Row],[Условное обозначение]])+0,99),SEARCH(\" П\",MID(Карта[[#This Row],[Условное обозначение]],SEARCH(\"М\",Карта[[#This Row],[Условное обозначение]])+0,99)))))","v":"F₂300 W12 "},"К.П №11 МТС/У",{"$f":"IFERROR(IF(Карта[[#This Row],[Вид смеси]]=\"Бетонная смесь\",ROUND(RIGHT(Карта[[#This Row],[Класс]],LEN(Карта[[#This Row],[Класс]])-1)*$F$1,2),ROUND(RIGHT(Карта[[#This Row],[Класс]],LEN(Карта[[#This Row],[Класс]])-1)*$F$2,2)),\"-\")","v":38.4},{"$f":"IF(Карта[[#This Row],[Условное обозначение]]=\"\",\"\",Карта[[#This Row],[Прочность]]*70%)","v":26.88},420,{"$f":"IF(Карта[[#This Row],[Условное обозначение]]=\"\",\"\",$I$2)","v":"Ритент Ультра"},1,{"$f":"IF(Карта[[#This Row],[Условное обозначение]]=\"\",\"\",Карта[[#This Row],[Расход цемента]]*Карта[[#This Row],[%, расход]]/100)","v":4.2},{"$f":"IF(Карта[[#This Row],[Условное обозначение]]=\"\",\"\",$L$2)","v":"Ритент Аэр"},0.15,{"$f":"IF(Карта[[#This Row],[Условное обозначение]]=\"\",\"\",Карта[[#This Row],[Расход цемента]]*Карта[[#This Row],[%, расход2]]/100)","v":0.63},265.7,{"$f":"IFERROR(IF(Карта[[#This Row],[Вид смеси]]=\"Бетонная смесь\",LEFTB(MID(Карта[[#This Row],[Условное обозначение]],SEARCH(\"П\",Карта[[#This Row],[Условное обозначение]])+0,99),SEARCH(\" F\",MID(Карта[[#This Row],[Условное обозначение]],SEARCH(\"П\",Карта[[#This Row],[Условное обозначение]])+0,99))),LEFTB(MID(Карта[[#This Row],[Условное обозначение]],SEARCH(\"П\",Карта[[#This Row],[Условное обозначение]])+0,99),SEARCH(\" Г\",MID(Карта[[#This Row],[Условное обозначение]],SEARCH(\"П\",Карта[[#This Row],[Условное обозначение]])+0,99)))),\"-\")","v":"П4 "},{"$f":"IFERROR(INDEX(Норматив[Параметры],MATCH(Карта[[#This Row],[Подвижность]],Норматив[Характеристика],1)),\"-\")","v":"П4 (16-20 см)"},{"$f":"IF(Карта[[#This Row],[Вид смеси]]=\"Бетонная смесь\",\"воздухововлечение - 4-6%\",\"-\")","v":"воздухововлечение - 4-6%"},"От 1ч 30 мин до 3ч 00 мин"]
[{"$f":"IFERROR(IF(Карта[[#This Row],[Вид смеси]]=\"Бетонная смесь\",TRIM(LEFTB(SUBSTITUTE(MID(Карта[[#This Row],[Условное обозначение]],SEARCH(\" \",Карта[[#This Row],[Условное обозначение]])+1,99),\" \",REPT(\" \",99)),99)),TRIM(LEFTB(MID(Карта[[#This Row],[Условное обозначение]],SEARCH(\"М\",Карта[[#This Row],[Условное обозначение]])+0,99),SEARCH(\" П\",MID(Карта[[#This Row],[Условное обозначение]],SEARCH(\"М\",Карта[[#This Row],[Условное обозначение]])+0,99))))),\"-\")","v":"В35"},"Бетонная смесь","БСТ В35 П4 F₂300 W12 ГОСТ 7473-2010",{"$f":"IF(Карта[[#This Row],[Условное обозначение]]=\"\",\"\",IF(Карта[[#This Row],[Вид смеси]]=\"Бетонная смесь\",LEFTB(MID(Карта[[#This Row],[Условное обозначение]],SEARCH(\"F\",Карта[[#This Row],[Условное обозначение]])+0,99),SEARCH(\" Г\",MID(Карта[[#This Row],[Условное обозначение]],SEARCH(\"F\",Карта[[#This Row],[Условное обозначение]])+0,99))),LEFTB(MID(Карта[[#This Row],[Условное обозначение]],SEARCH(\"М\",Карта[[#This Row],[Условное обозначение]])+0,99),SEARCH(\" П\",MID(Карта[[#This Row],[Условное обозначение]],SEARCH(\"М\",Карта[[#This Row],[Условное обозначение]])+0,99)))))","v":"F₂300 W12 "},"К.П №11 МТС/У",{"$f":"IFERROR(IF(Карта[[#This Row],[Вид смеси]]=\"Бетонная смесь\",ROUND(RIGHT(Карта[[#This Row],[Класс]],LEN(Карта[[#This Row],[Класс]])-1)*$F$1,2),ROUND(RIGHT(Карта[[#This Row],[Класс]],LEN(Карта[[#This Row],[Класс]])-1)*$F$2,2)),\"-\")","v":44.8},{"$f":"IF(Карта[[#This Row],[Условное обозначение]]=\"\",\"\",Карта[[#This Row],[Прочность]]*70%)","v":31.359999999999996},420,{"$f":"IF(Карта[[#This Row],[Условное обозначение]]=\"\",\"\",$I$2)","v":"Ритент Ультра"},1,{"$f":"IF(Карта[[#This Row],[Условное обозначение]]=\"\",\"\",Карта[[#This Row],[Расход цемента]]*Карта[[#This Row],[%, расход]]/100)","v":4.2},{"$f":"IF(Карта[[#This Row],[Условное обозначение]]=\"\",\"\",$L$2)","v":"Ритент Аэр"},0.15,{"$f":"IF(Карта[[#This Row],[Условное обозначение]]=\"\",\"\",Карта[[#This Row],[Расход цемента]]*Карта[[#This Row],[%, расход2]]/100)","v":0.63},265.7,{"$f":"IFERROR(IF(Карта[[#This Row],[Вид смеси]]=\"Бетонная смесь\",LEFTB(MID(Карта[[#This Row],[Условное обозначение]],SEARCH(\"П\",Карта[[#This Row],[Условное обозначение]])+0,99),SEARCH(\" F\",MID(Карта[[#This Row],[Условное обозначение]],SEARCH(\"П\",Карта[[#This Row],[Условное обозначение]])+0,99))),LEFTB(MID(Карта[[#This Row],[Условное обозначение]],SEARCH(\"П\",Карта[[#This Row],[Условное обозначение]])+0,99),SEARCH(\" Г\",MID(Карта[[#This Row],[Условное обозначение]],SEARCH(\"П\",Карта[[#This Row],[Условное обозначение]])+0,99)))),\"-\")","v":"П4 "},{"$f":"IFERROR(INDEX(Норматив[Параметры],MATCH(Карта[[#This Row],[Подвижность]],Норматив[Характеристика],1)),\"-\")","v":"П4 (16-20 см)"},{"$f":"IF(Карта[[#This Row],[Вид смеси]]=\"Бетонная смесь\",\"воздухововлечение - 4-6%\",\"-\")","v":"воздухововлечение - 4-6%"},"От 1ч 30 мин до 3ч 00 мин"]
[{"$f":"IFERROR(IF(Карта[[#This Row],[Вид смеси]]=\"Бетонная смесь\",TRIM(LEFTB(SUBSTITUTE(MID(Карта[[#This Row],[Условное обозначение]],SEARCH(\" \",Карта[[#This Row],[Условное обозначение]])+1,99),\" \",REPT(\" \",99)),99)),TRIM(LEFTB(MID(Карта[[#This Row],[Условное обозначение]],SEARCH(\"М\",Карта[[#This Row],[Условное обозначение]])+0,99),SEARCH(\" П\",MID(Карта[[#This Row],[Условное обозначение]],SEARCH(\"М\",Карта[[#This Row],[Условное обозначение]])+0,99))))),\"-\")","v":"В40"},"Бетонная смесь","БСТ В40 П4 F₂300 W12 ГОСТ 7473-2010",{"$f":"IF(Карта[[#This Row],[Условное обозначение]]=\"\",\"\",IF(Карта[[#This Row],[Вид смеси]]=\"Бетонная смесь\",LEFTB(MID(Карта[[#This Row],[Условное обозначение]],SEARCH(\"F\",Карта[[#This Row],[Условное обозначение]])+0,99),SEARCH(\" Г\",MID(Карта[[#This Row],[Условное обозначение]],SEARCH(\"F\",Карта[[#This Row],[Условное обозначение]])+0,99))),LEFTB(MID(Карта[[#This Row],[Условное обозначение]],SEARCH(\"М\",Карта[[#This Row],[Условное обозначение]])+0,99),SEARCH(\" П\",MID(Карта[[#This Row],[Условное обозначение]],SEARCH(\"М\",Карта[[#This Row],[Условное обозначение]])+0,99)))))","v":"F₂300 W12 "},"К.П №12 МТС/У",{"$f":"IFERROR(IF(Карта[[#This Row],[Вид смеси]]=\"Бетонная смесь\",ROUND(RIGHT(Карта[[#This Row],[Класс]],LEN(Карта[[#This Row],[Класс]])-1)*$F$1,2),ROUND(RIGHT(Карта[[#This Row],[Класс]],LEN(Карта[[#This Row],[Класс]])-1)*$F$2,2)),\"-\")","v":51.2},{"$f":"IF(Карта[[#This Row],[Условное обозначение]]=\"\",\"\",Карта[[#This Row],[Прочность]]*70%)","v":35.839999999999996},440,{"$f":"IF(Карта[[#This Row],[Условное обозначение]]=\"\",\"\",$I$2)","v":"Ритент Ультра"},1,{"$f":"IF(Карта[[#This Row],[Условное обозначение]]=\"\",\"\",Карта[[#This Row],[Расход цемента]]*Карта[[#This Row],[%, расход]]/100)","v":4.4000000000000004},{"$f":"IF(Карта[[#This Row],[Условное обозначение]]=\"\",\"\",$L$2)","v":"Ритент Аэр"},0.15,{"$f":"IF(Карта[[#This Row],[Условное обозначение]]=\"\",\"\",Карта[[#This Row],[Расход цемента]]*Карта[[#This Row],[%, расход2]]/100)","v":0.66},265.7,{"$f":"IFERROR(IF(Карта[[#This Row],[Вид смеси]]=\"Бетонная смесь\",LEFTB(MID(Карта[[#This Row],[Условное обозначение]],SEARCH(\"П\",Карта[[#This Row],[Условное обозначение]])+0,99),SEARCH(\" F\",MID(Карта[[#This Row],[Условное обозначение]],SEARCH(\"П\",Карта[[#This Row],[Условное обозначение]])+0,99))),LEFTB(MID(Карта[[#This Row],[Условное обозначение]],SEARCH(\"П\",Карта[[#This Row],[Условное обозначение]])+0,99),SEARCH(\" Г\",MID(Карта[[#This Row],[Условное обозначение]],SEARCH(\"П\",Карта[[#This Row],[Условное обозначение]])+0,99)))),\"-\")","v":"П4 "},{"$f":"IFERROR(INDEX(Норматив[Параметры],MATCH(Карта[[#This Row],[Подвижность]],Норматив[Характеристика],1)),\"-\")","v":"П4 (16-20 см)"},{"$f":"IF(Карта[[#This Row],[Вид смеси]]=\"Бетонная смесь\",\"воздухововлечение - 4-6%\",\"-\")","v":"воздухововлечение - 4-6%"},"От 1ч 30 мин до 3ч 00 мин"]
[{"$f":"IFERROR(IF(Карта[[#This Row],[Вид смеси]]=\"Бетонная смесь\",TRIM(LEFTB(SUBSTITUTE(MID(Карта[[#This Row],[Условное обозначение]],SEARCH(\" \",Карта[[#This Row],[Условное обозначение]])+1,99),\" \",REPT(\" \",99)),99)),TRIM(LEFTB(MID(Карта[[#This Row],[Условное обозначение]],SEARCH(\"М\",Карта[[#This Row],[Условное обозначение]])+0,99),SEARCH(\" П\",MID(Карта[[#This Row],[Условное обозначение]],SEARCH(\"М\",Карта[[#This Row],[Условное обозначение]])+0,99))))),\"-\")","v":"В45"},"Бетонная смесь","БСТ В45 П4 F₂300 W12 ГОСТ 7473-2010",{"$f":"IF(Карта[[#This Row],[Условное обозначение]]=\"\",\"\",IF(Карта[[#This Row],[Вид смеси]]=\"Бетонная смесь\",LEFTB(MID(Карта[[#This Row],[Условное обозначение]],SEARCH(\"F\",Карта[[#This Row],[Условное обозначение]])+0,99),SEARCH(\" Г\",MID(Карта[[#This Row],[Условное обозначение]],SEARCH(\"F\",Карта[[#This Row],[Условное обозначение]])+0,99))),LEFTB(MID(Карта[[#This Row],[Условное обозначение]],SEARCH(\"М\",Карта[[#This Row],[Условное обозначение]])+0,99),SEARCH(\" П\",MID(Карта[[#This Row],[Условное обозначение]],SEARCH(\"М\",Карта[[#This Row],[Условное обозначение]])+0,99)))))","v":"F₂300 W12 "},"К.П №12 МТС/У",{"$f":"IFERROR(IF(Карта[[#This Row],[Вид смеси]]=\"Бетонная смесь\",ROUND(RIGHT(Карта[[#This Row],[Класс]],LEN(Карта[[#This Row],[Класс]])-1)*$F$1,2),ROUND(RIGHT(Карта[[#This Row],[Класс]],LEN(Карта[[#This Row],[Класс]])-1)*$F$2,2)),\"-\")","v":57.6},{"$f":"IF(Карта[[#This Row],[Условное обозначение]]=\"\",\"\",Карта[[#This Row],[Прочность]]*70%)","v":40.32},440,{"$f":"IF(Карта[[#This Row],[Условное обозначение]]=\"\",\"\",$I$2)","v":"Ритент Ультра"},1,{"$f":"IF(Карта[[#This Row],[Условное обозначение]]=\"\",\"\",Карта[[#This Row],[Расход цемента]]*Карта[[#This Row],[%, расход]]/100)","v":4.4000000000000004},{"$f":"IF(Карта[[#This Row],[Условное обозначение]]=\"\",\"\",$L$2)","v":"Ритент Аэр"},0.15,{"$f":"IF(Карта[[#This Row],[Условное обозначение]]=\"\",\"\",Карта[[#This Row],[Расход цемента]]*Карта[[#This Row],[%, расход2]]/100)","v":0.66},265.7,{"$f":"IFERROR(IF(Карта[[#This Row],[Вид смеси]]=\"Бетонная смесь\",LEFTB(MID(Карта[[#This Row],[Условное обозначение]],SEARCH(\"П\",Карта[[#This Row],[Условное обозначение]])+0,99),SEARCH(\" F\",MID(Карта[[#This Row],[Условное обозначение]],SEARCH(\"П\",Карта[[#This Row],[Условное обозначение]])+0,99))),LEFTB(MID(Карта[[#This Row],[Условное обозначение]],SEARCH(\"П\",Карта[[#This Row],[Условное обозначение]])+0,99),SEARCH(\" Г\",MID(Карта[[#This Row],[Условное обозначение]],SEARCH(\"П\",Карта[[#This Row],[Условное обозначение]])+0,99)))),\"-\")","v":"П4 "},{"$f":"IFERROR(INDEX(Норматив[Параметры],MATCH(Карта[[#This Row],[Подвижность]],Норматив[Характеристика],1)),\"-\")","v":"П4 (16-20 см)"},{"$f":"IF(Карта[[#This Row],[Вид смеси]]=\"Бетонная смесь\",\"воздухововлечение - 4-6%\",\"-\")","v":"воздухововлечение - 4-6%"},"От 1ч 30 мин до 3ч 00 мин"]
[{"$f":"IFERROR(IF(Карта[[#This Row],[Вид смеси]]=\"Бетонная смесь\",TRIM(LEFTB(SUBSTITUTE(MID(Карта[[#This Row],[Условное обозначение]],SEARCH(\" \",Карта[[#This Row],[Условное обозначение]])+1,99),\" \",REPT(\" \",99)),99)),TRIM(LEFTB(MID(Карта[[#This Row],[Условное обозначение]],SEARCH(\"М\",Карта[[#This Row],[Условное обозначение]])+0,99),SEARCH(\" П\",MID(Карта[[#This Row],[Условное обозначение]],SEARCH(\"М\",Карта[[#This Row],[Условное обозначение]])+0,99))))),\"-\")","v":"М100"},"Растворная смесь","Строительный раствор М100 Пк2 ГОСТ Р 58766-2019",{"$f":"IF(Карта[[#This Row],[Условное обозначение]]=\"\",\"\",IF(Карта[[#This Row],[Вид смеси]]=\"Бетонная смесь\",LEFTB(MID(Карта[[#This Row],[Условное обозначение]],SEARCH(\"F\",Карта[[#This Row],[Условное обозначение]])+0,99),SEARCH(\" Г\",MID(Карта[[#This Row],[Условное обозначение]],SEARCH(\"F\",Карта[[#This Row],[Условное обозначение]])+0,99))),LEFTB(MID(Карта[[#This Row],[Условное обозначение]],SEARCH(\"М\",Карта[[#This Row],[Условное обозначение]])+0,99),SEARCH(\" П\",MID(Карта[[#This Row],[Условное обозначение]],SEARCH(\"М\",Карта[[#This Row],[Условное обозначение]])+0,99)))))","v":"М100 "},null,{"$f":"IFERROR(IF(Карта[[#This Row],[Вид смеси]]=\"Бетонная смесь\",ROUND(RIGHT(Карта[[#This Row],[Класс]],LEN(Карта[[#This Row],[Класс]])-1)*$F$1,2),ROUND(RIGHT(Карта[[#This Row],[Класс]],LEN(Карта[[#This Row],[Класс]])-1)*$F$2,2)),\"-\")","v":9.8000000000000007},{"$f":"IF(Карта[[#This Row],[Условное обозначение]]=\"\",\"\",Карта[[#This Row],[Прочность]]*70%)","v":6.86},null,{"$f":"IF(Карта[[#This Row],[Условное обозначение]]=\"\",\"\",$I$2)","v":"Ритент Ультра"},null,{"$f":"IF(Карта[[#This Row],[Условное обозначение]]=\"\",\"\",Карта[[#This Row],[Расход цемента]]*Карта[[#This Row],[%, расход]]/100)","v":0},{"$f":"IF(Карта[[#This Row],[Условное обозначение]]=\"\",\"\",$L$2)","v":"Ритент Аэр"},null,{"$f":"IF(Карта[[#This Row],[Условное обозначение]]=\"\",\"\",Карта[[#This Row],[Расход цемента]]*Карта[[#This Row],[%, расход2]]/100)","v":0},null,{"$f":"IFERROR(IF(Карта[[#This Row],[Вид смеси]]=\"Бетонная смесь\",LEFTB(MID(Карта[[#This Row],[Условное обозначение]],SEARCH(\"П\",Карта[[#This Row],[Условное обозначение]])+0,99),SEARCH(\" F\",MID(Карта[[#This Row],[Условное обозначение]],SEARCH(\"П\",Карта[[#This Row],[Условное обозначение]])+0,99))),LEFTB(MID(Карта[[#This Row],[Условное обозначение]],SEARCH(\"П\",Карта[[#This Row],[Условное обозначение]])+0,99),SEARCH(\" Г\",MID(Карта[[#This Row],[Условное обозначение]],SEARCH(\"П\",Карта[[#This Row],[Условное обозначение]])+0,99)))),\"-\")","v":"Пк2 "},{"$f":"IFERROR(INDEX(Норматив[Параметры],MATCH(Карта[[#This Row],[Подвижность]],Норматив[Характеристика],1)),\"-\")","v":"Пк2 (От 4 до 8 см, включ.)"},{"$f":"IF(Карта[[#This Row],[Вид смеси]]=\"Бетонная смесь\",\"воздухововлечение - 4-6%\",\"-\")","v":"-"}]
[{"$f":"IFERROR(IF(Карта[[#This Row],[Вид смеси]]=\"Бетонная смесь\",TRIM(LEFTB(SUBSTITUTE(MID(Карта[[#This Row],[Условное обозначение]],SEARCH(\" \",Карта[[#This Row],[Условное обозначение]])+1,99),\" \",REPT(\" \",99)),99)),TRIM(LEFTB(MID(Карта[[#This Row],[Условное обозначение]],SEARCH(\"М\",Карта[[#This Row],[Условное обозначение]])+0,99),SEARCH(\" П\",MID(Карта[[#This Row],[Условное обозначение]],SEARCH(\"М\",Карта[[#This Row],[Условное обозначение]])+0,99))))),\"-\")","v":"-"},null,null,{"$f":"IF(Карта[[#This Row],[Условное обозначение]]=\"\",\"\",IF(Карта[[#This Row],[Вид смеси]]=\"Бетонная смесь\",LEFTB(MID(Карта[[#This Row],[Условное обозначение]],SEARCH(\"F\",Карта[[#This Row],[Условное обозначение]])+0,99),SEARCH(\" Г\",MID(Карта[[#This Row],[Условное обозначение]],SEARCH(\"F\",Карта[[#This Row],[Условное обозначение]])+0,99))),LEFTB(MID(Карта[[#This Row],[Условное обозначение]],SEARCH(\"М\",Карта[[#This Row],[Условное обозначение]])+0,99),SEARCH(\" П\",MID(Карта[[#This Row],[Условное обозначение]],SEARCH(\"М\",Карта[[#This Row],[Условное обозначение]])+0,99)))))","v":""},null,{"$f":"IFERROR(IF(Карта[[#This Row],[Вид смеси]]=\"Бетонная смесь\",ROUND(RIGHT(Карта[[#This Row],[Класс]],LEN(Карта[[#This Row],[Класс]])-1)*$F$1,2),ROUND(RIGHT(Карта[[#This Row],[Класс]],LEN(Карта[[#This Row],[Класс]])-1)*$F$2,2)),\"-\")","v":"-"},{"$f":"IF(Карта[[#This Row],[Условное обозначение]]=\"\",\"\",Карта[[#This Row],[Прочность]]*70%)","v":""},null,{"$f":"IF(Карта[[#This Row],[Условное обозначение]]=\"\",\"\",$I$2)","v":""},null,{"$f":"IF(Карта[[#This Row],[Условное обозначение]]=\"\",\"\",Карта[[#This Row],[Расход цемента]]*Карта[[#This Row],[%, расход]]/100)","v":""},{"$f":"IF(Карта[[#This Row],[Условное обозначение]]=\"\",\"\",$L$2)","v":""},null,{"$f":"IF(Карта[[#This Row],[Условное обозначение]]=\"\",\"\",Карта[[#This Row],[Расход цемента]]*Карта[[#This Row],[%, расход2]]/100)","v":""},null,{"$f":"IFERROR(IF(Карта[[#This Row],[Вид смеси]]=\"Бетонная смесь\",LEFTB(MID(Карта[[#This Row],[Условное обозначение]],SEARCH(\"П\",Карта[[#This Row],[Условное обозначение]])+0,99),SEARCH(\" F\",MID(Карта[[#This Row],[Условное обозначение]],SEARCH(\"П\",Карта[[#This Row],[Условное обозначение]])+0,99))),LEFTB(MID(Карта[[#This Row],[Условное обозначение]],SEARCH(\"П\",Карта[[#This Row],[Условное обозначение]])+0,99),SEARCH(\" Г\",MID(Карта[[#This Row],[Условное обозначение]],SEARCH(\"П\",Карта[[#This Row],[Условное обозначение]])+0,99)))),\"-\")","v":"-"},{"$f":"IFERROR(INDEX(Норматив[Параметры],MATCH(Карта[[#This Row],[Подвижность]],Норматив[Характеристика],1)),\"-\")","v":"-"},{"$f":"IF(Карта[[#This Row],[Вид смеси]]=\"Бетонная смесь\",\"воздухововлечение - 4-6%\",\"-\")","v":"-"}]
[{"$f":"IFERROR(IF(Карта[[#This Row],[Вид смеси]]=\"Бетонная смесь\",TRIM(LEFTB(SUBSTITUTE(MID(Карта[[#This Row],[Условное обозначение]],SEARCH(\" \",Карта[[#This Row],[Условное обозначение]])+1,99),\" \",REPT(\" \",99)),99)),TRIM(LEFTB(MID(Карта[[#This Row],[Условное обозначение]],SEARCH(\"М\",Карта[[#This Row],[Условное обозначение]])+0,99),SEARCH(\" П\",MID(Карта[[#This Row],[Условное обозначение]],SEARCH(\"М\",Карта[[#This Row],[Условное обозначение]])+0,99))))),\"-\")","v":"-"},null,null,{"$f":"IF(Карта[[#This Row],[Условное обозначение]]=\"\",\"\",IF(Карта[[#This Row],[Вид смеси]]=\"Бетонная смесь\",LEFTB(MID(Карта[[#This Row],[Условное обозначение]],SEARCH(\"F\",Карта[[#This Row],[Условное обозначение]])+0,99),SEARCH(\" Г\",MID(Карта[[#This Row],[Условное обозначение]],SEARCH(\"F\",Карта[[#This Row],[Условное обозначение]])+0,99))),LEFTB(MID(Карта[[#This Row],[Условное обозначение]],SEARCH(\"М\",Карта[[#This Row],[Условное обозначение]])+0,99),SEARCH(\" П\",MID(Карта[[#This Row],[Условное обозначение]],SEARCH(\"М\",Карта[[#This Row],[Условное обозначение]])+0,99)))))","v":""},null,{"$f":"IFERROR(IF(Карта[[#This Row],[Вид смеси]]=\"Бетонная смесь\",ROUND(RIGHT(Карта[[#This Row],[Класс]],LEN(Карта[[#This Row],[Класс]])-1)*$F$1,2),ROUND(RIGHT(Карта[[#This Row],[Класс]],LEN(Карта[[#This Row],[Класс]])-1)*$F$2,2)),\"-\")","v":"-"},{"$f":"IF(Карта[[#This Row],[Условное обозначение]]=\"\",\"\",Карта[[#This Row],[Прочность]]*70%)","v":""},null,{"$f":"IF(Карта[[#This Row],[Условное обозначение]]=\"\",\"\",$I$2)","v":""},null,{"$f":"IF(Карта[[#This Row],[Условное обозначение]]=\"\",\"\",Карта[[#This Row],[Расход цемента]]*Карта[[#This Row],[%, расход]]/100)","v":""},{"$f":"IF(Карта[[#This Row],[Условное обозначение]]=\"\",\"\",$L$2)","v":""},null,{"$f":"IF(Карта[[#This Row],[Условное обозначение]]=\"\",\"\",Карта[[#This Row],[Расход цемента]]*Карта[[#This Row],[%, расход2]]/100)","v":""},null,{"$f":"IFERROR(IF(Карта[[#This Row],[Вид смеси]]=\"Бетонная смесь\",LEFTB(MID(Карта[[#This Row],[Условное обозначение]],SEARCH(\"П\",Карта[[#This Row],[Условное обозначение]])+0,99),SEARCH(\" F\",MID(Карта[[#This Row],[Условное обозначение]],SEARCH(\"П\",Карта[[#This Row],[Условное обозначение]])+0,99))),LEFTB(MID(Карта[[#This Row],[Условное обозначение]],SEARCH(\"П\",Карта[[#This Row],[Условное обозначение]])+0,99),SEARCH(\" Г\",MID(Карта[[#This Row],[Условное обозначение]],SEARCH(\"П\",Карта[[#This Row],[Условное обозначение]])+0,99)))),\"-\")","v":"-"},{"$f":"IFERROR(INDEX(Норматив[Параметры],MATCH(Карта[[#This Row],[Подвижность]],Норматив[Характеристика],1)),\"-\")","v":"-"},{"$f":"IF(Карта[[#This Row],[Вид смеси]]=\"Бетонная смесь\",\"воздухововлечение - 4-6%\",\"-\")","v":"-"}]
[{"$f":"IFERROR(IF(Карта[[#This Row],[Вид смеси]]=\"Бетонная смесь\",TRIM(LEFTB(SUBSTITUTE(MID(Карта[[#This Row],[Условное обозначение]],SEARCH(\" \",Карта[[#This Row],[Условное обозначение]])+1,99),\" \",REPT(\" \",99)),99)),TRIM(LEFTB(MID(Карта[[#This Row],[Условное обозначение]],SEARCH(\"М\",Карта[[#This Row],[Условное обозначение]])+0,99),SEARCH(\" П\",MID(Карта[[#This Row],[Условное обозначение]],SEARCH(\"М\",Карта[[#This Row],[Условное обозначение]])+0,99))))),\"-\")","v":"-"},null,null,{"$f":"IF(Карта[[#This Row],[Условное обозначение]]=\"\",\"\",IF(Карта[[#This Row],[Вид смеси]]=\"Бетонная смесь\",LEFTB(MID(Карта[[#This Row],[Условное обозначение]],SEARCH(\"F\",Карта[[#This Row],[Условное обозначение]])+0,99),SEARCH(\" Г\",MID(Карта[[#This Row],[Условное обозначение]],SEARCH(\"F\",Карта[[#This Row],[Условное обозначение]])+0,99))),LEFTB(MID(Карта[[#This Row],[Условное обозначение]],SEARCH(\"М\",Карта[[#This Row],[Условное обозначение]])+0,99),SEARCH(\" П\",MID(Карта[[#This Row],[Условное обозначение]],SEARCH(\"М\",Карта[[#This Row],[Условное обозначение]])+0,99)))))","v":""},null,{"$f":"IFERROR(IF(Карта[[#This Row],[Вид смеси]]=\"Бетонная смесь\",ROUND(RIGHT(Карта[[#This Row],[Класс]],LEN(Карта[[#This Row],[Класс]])-1)*$F$1,2),ROUND(RIGHT(Карта[[#This Row],[Класс]],LEN(Карта[[#This Row],[Класс]])-1)*$F$2,2)),\"-\")","v":"-"},{"$f":"IF(Карта[[#This Row],[Условное обозначение]]=\"\",\"\",Карта[[#This Row],[Прочность]]*70%)","v":""},null,{"$f":"IF(Карта[[#This Row],[Условное обозначение]]=\"\",\"\",$I$2)","v":""},null,{"$f":"IF(Карта[[#This Row],[Условное обозначение]]=\"\",\"\",Карта[[#This Row],[Расход цемента]]*Карта[[#This Row],[%, расход]]/100)","v":""},{"$f":"IF(Карта[[#This Row],[Условное обозначение]]=\"\",\"\",$L$2)","v":""},null,{"$f":"IF(Карта[[#This Row],[Условное обозначение]]=\"\",\"\",Карта[[#This Row],[Расход цемента]]*Карта[[#This Row],[%, расход2]]/100)","v":""},null,{"$f":"IFERROR(IF(Карта[[#This Row],[Вид смеси]]=\"Бетонная смесь\",LEFTB(MID(Карта[[#This Row],[Условное обозначение]],SEARCH(\"П\",Карта[[#This Row],[Условное обозначение]])+0,99),SEARCH(\" F\",MID(Карта[[#This Row],[Условное обозначение]],SEARCH(\"П\",Карта[[#This Row],[Условное обозначение]])+0,99))),LEFTB(MID(Карта[[#This Row],[Условное обозначение]],SEARCH(\"П\",Карта[[#This Row],[Условное обозначение]])+0,99),SEARCH(\" Г\",MID(Карта[[#This Row],[Условное обозначение]],SEARCH(\"П\",Карта[[#This Row],[Условное обозначение]])+0,99)))),\"-\")","v":"-"},{"$f":"IFERROR(INDEX(Норматив[Параметры],MATCH(Карта[[#This Row],[Подвижность]],Норматив[Характеристика],1)),\"-\")","v":"-"},{"$f":"IF(Карта[[#This Row],[Вид смеси]]=\"Бетонная смесь\",\"воздухововлечение - 4-6%\",\"-\")","v":"-"}]
[{"$f":"IFERROR(IF(Карта[[#This Row],[Вид смеси]]=\"Бетонная смесь\",TRIM(LEFTB(SUBSTITUTE(MID(Карта[[#This Row],[Условное обозначение]],SEARCH(\" \",Карта[[#This Row],[Условное обозначение]])+1,99),\" \",REPT(\" \",99)),99)),TRIM(LEFTB(MID(Карта[[#This Row],[Условное обозначение]],SEARCH(\"М\",Карта[[#This Row],[Условное обозначение]])+0,99),SEARCH(\" П\",MID(Карта[[#This Row],[Условное обозначение]],SEARCH(\"М\",Карта[[#This Row],[Условное обозначение]])+0,99))))),\"-\")","v":"-"},null,null,{"$f":"IF(Карта[[#This Row],[Условное обозначение]]=\"\",\"\",IF(Карта[[#This Row],[Вид смеси]]=\"Бетонная смесь\",LEFTB(MID(Карта[[#This Row],[Условное обозначение]],SEARCH(\"F\",Карта[[#This Row],[Условное обозначение]])+0,99),SEARCH(\" Г\",MID(Карта[[#This Row],[Условное обозначение]],SEARCH(\"F\",Карта[[#This Row],[Условное обозначение]])+0,99))),LEFTB(MID(Карта[[#This Row],[Условное обозначение]],SEARCH(\"М\",Карта[[#This Row],[Условное обозначение]])+0,99),SEARCH(\" П\",MID(Карта[[#This Row],[Условное обозначение]],SEARCH(\"М\",Карта[[#This Row],[Условное обозначение]])+0,99)))))","v":""},null,{"$f":"IFERROR(IF(Карта[[#This Row],[Вид смеси]]=\"Бетонная смесь\",ROUND(RIGHT(Карта[[#This Row],[Класс]],LEN(Карта[[#This Row],[Класс]])-1)*$F$1,2),ROUND(RIGHT(Карта[[#This Row],[Класс]],LEN(Карта[[#This Row],[Класс]])-1)*$F$2,2)),\"-\")","v":"-"},{"$f":"IF(Карта[[#This Row],[Условное обозначение]]=\"\",\"\",Карта[[#This Row],[Прочность]]*70%)","v":""},null,{"$f":"IF(Карта[[#This Row],[Условное обозначение]]=\"\",\"\",$I$2)","v":""},null,{"$f":"IF(Карта[[#This Row],[Условное обозначение]]=\"\",\"\",Карта[[#This Row],[Расход цемента]]*Карта[[#This Row],[%, расход]]/100)","v":""},{"$f":"IF(Карта[[#This Row],[Условное обозначение]]=\"\",\"\",$L$2)","v":""},null,{"$f":"IF(Карта[[#This Row],[Условное обозначение]]=\"\",\"\",Карта[[#This Row],[Расход цемента]]*Карта[[#This Row],[%, расход2]]/100)","v":""},null,{"$f":"IFERROR(IF(Карта[[#This Row],[Вид смеси]]=\"Бетонная смесь\",LEFTB(MID(Карта[[#This Row],[Условное обозначение]],SEARCH(\"П\",Карта[[#This Row],[Условное обозначение]])+0,99),SEARCH(\" F\",MID(Карта[[#This Row],[Условное обозначение]],SEARCH(\"П\",Карта[[#This Row],[Условное обозначение]])+0,99))),LEFTB(MID(Карта[[#This Row],[Условное обозначение]],SEARCH(\"П\",Карта[[#This Row],[Условное обозначение]])+0,99),SEARCH(\" Г\",MID(Карта[[#This Row],[Условное обозначение]],SEARCH(\"П\",Карта[[#This Row],[Условное обозначение]])+0,99)))),\"-\")","v":"-"},{"$f":"IFERROR(INDEX(Норматив[Параметры],MATCH(Карта[[#This Row],[Подвижность]],Норматив[Характеристика],1)),\"-\")","v":"-"},{"$f":"IF(Карта[[#This Row],[Вид смеси]]=\"Бетонная смесь\",\"воздухововлечение - 4-6%\",\"-\")","v":"-"}]
[{"$f":"IFERROR(IF(Карта[[#This Row],[Вид смеси]]=\"Бетонная смесь\",TRIM(LEFTB(SUBSTITUTE(MID(Карта[[#This Row],[Условное обозначение]],SEARCH(\" \",Карта[[#This Row],[Условное обозначение]])+1,99),\" \",REPT(\" \",99)),99)),TRIM(LEFTB(MID(Карта[[#This Row],[Условное обозначение]],SEARCH(\"М\",Карта[[#This Row],[Условное обозначение]])+0,99),SEARCH(\" П\",MID(Карта[[#This Row],[Условное обозначение]],SEARCH(\"М\",Карта[[#This Row],[Условное обозначение]])+0,99))))),\"-\")","v":"-"},null,null,{"$f":"IF(Карта[[#This Row],[Условное обозначение]]=\"\",\"\",IF(Карта[[#This Row],[Вид смеси]]=\"Бетонная смесь\",LEFTB(MID(Карта[[#This Row],[Условное обозначение]],SEARCH(\"F\",Карта[[#This Row],[Условное обозначение]])+0,99),SEARCH(\" Г\",MID(Карта[[#This Row],[Условное обозначение]],SEARCH(\"F\",Карта[[#This Row],[Условное обозначение]])+0,99))),LEFTB(MID(Карта[[#This Row],[Условное обозначение]],SEARCH(\"М\",Карта[[#This Row],[Условное обозначение]])+0,99),SEARCH(\" П\",MID(Карта[[#This Row],[Условное обозначение]],SEARCH(\"М\",Карта[[#This Row],[Условное обозначение]])+0,99)))))","v":""},null,{"$f":"IFERROR(IF(Карта[[#This Row],[Вид смеси]]=\"Бетонная смесь\",ROUND(RIGHT(Карта[[#This Row],[Класс]],LEN(Карта[[#This Row],[Класс]])-1)*$F$1,2),ROUND(RIGHT(Карта[[#This Row],[Класс]],LEN(Карта[[#This Row],[Класс]])-1)*$F$2,2)),\"-\")","v":"-"},{"$f":"IF(Карта[[#This Row],[Условное обозначение]]=\"\",\"\",Карта[[#This Row],[Прочность]]*70%)","v":""},null,{"$f":"IF(Карта[[#This Row],[Условное обозначение]]=\"\",\"\",$I$2)","v":""},null,{"$f":"IF(Карта[[#This Row],[Условное обозначение]]=\"\",\"\",Карта[[#This Row],[Расход цемента]]*Карта[[#This Row],[%, расход]]/100)","v":""},{"$f":"IF(Карта[[#This Row],[Условное обозначение]]=\"\",\"\",$L$2)","v":""},null,{"$f":"IF(Карта[[#This Row],[Условное обозначение]]=\"\",\"\",Карта[[#This Row],[Расход цемента]]*Карта[[#This Row],[%, расход2]]/100)","v":""},null,{"$f":"IFERROR(IF(Карта[[#This Row],[Вид смеси]]=\"Бетонная смесь\",LEFTB(MID(Карта[[#This Row],[Условное обозначение]],SEARCH(\"П\",Карта[[#This Row],[Условное обозначение]])+0,99),SEARCH(\" F\",MID(Карта[[#This Row],[Условное обозначение]],SEARCH(\"П\",Карта[[#This Row],[Условное обозначение]])+0,99))),LEFTB(MID(Карта[[#This Row],[Условное обозначение]],SEARCH(\"П\",Карта[[#This Row],[Условное обозначение]])+0,99),SEARCH(\" Г\",MID(Карта[[#This Row],[Условное обозначение]],SEARCH(\"П\",Карта[[#This Row],[Условное обозначение]])+0,99)))),\"-\")","v":"-"},{"$f":"IFERROR(INDEX(Норматив[Параметры],MATCH(Карта[[#This Row],[Подвижность]],Норматив[Характеристика],1)),\"-\")","v":"-"},{"$f":"IF(Карта[[#This Row],[Вид смеси]]=\"Бетонная смесь\",\"воздухововлечение - 4-6%\",\"-\")","v":"-"}]
[{"$f":"IFERROR(IF(Карта[[#This Row],[Вид смеси]]=\"Бетонная смесь\",TRIM(LEFTB(SUBSTITUTE(MID(Карта[[#This Row],[Условное обозначение]],SEARCH(\" \",Карта[[#This Row],[Условное обозначение]])+1,99),\" \",REPT(\" \",99)),99)),TRIM(LEFTB(MID(Карта[[#This Row],[Условное обозначение]],SEARCH(\"М\",Карта[[#This Row],[Условное обозначение]])+0,99),SEARCH(\" П\",MID(Карта[[#This Row],[Условное обозначение]],SEARCH(\"М\",Карта[[#This Row],[Условное обозначение]])+0,99))))),\"-\")","v":"-"},null,null,{"$f":"IF(Карта[[#This Row],[Условное обозначение]]=\"\",\"\",IF(Карта[[#This Row],[Вид смеси]]=\"Бетонная смесь\",LEFTB(MID(Карта[[#This Row],[Условное обозначение]],SEARCH(\"F\",Карта[[#This Row],[Условное обозначение]])+0,99),SEARCH(\" Г\",MID(Карта[[#This Row],[Условное обозначение]],SEARCH(\"F\",Карта[[#This Row],[Условное обозначение]])+0,99))),LEFTB(MID(Карта[[#This Row],[Условное обозначение]],SEARCH(\"М\",Карта[[#This Row],[Условное обозначение]])+0,99),SEARCH(\" П\",MID(Карта[[#This Row],[Условное обозначение]],SEARCH(\"М\",Карта[[#This Row],[Условное обозначение]])+0,99)))))","v":""},null,{"$f":"IFERROR(IF(Карта[[#This Row],[Вид смеси]]=\"Бетонная смесь\",ROUND(RIGHT(Карта[[#This Row],[Класс]],LEN(Карта[[#This Row],[Класс]])-1)*$F$1,2),ROUND(RIGHT(Карта[[#This Row],[Класс]],LEN(Карта[[#This Row],[Класс]])-1)*$F$2,2)),\"-\")","v":"-"},{"$f":"IF(Карта[[#This Row],[Условное обозначение]]=\"\",\"\",Карта[[#This Row],[Прочность]]*70%)","v":""},null,{"$f":"IF(Карта[[#This Row],[Условное обозначение]]=\"\",\"\",$I$2)","v":""},null,{"$f":"IF(Карта[[#This Row],[Условное обозначение]]=\"\",\"\",Карта[[#This Row],[Расход цемента]]*Карта[[#This Row],[%, расход]]/100)","v":""},{"$f":"IF(Карта[[#This Row],[Условное обозначение]]=\"\",\"\",$L$2)","v":""},null,{"$f":"IF(Карта[[#This Row],[Условное обозначение]]=\"\",\"\",Карта[[#This Row],[Расход цемента]]*Карта[[#This Row],[%, расход2]]/100)","v":""},null,{"$f":"IFERROR(IF(Карта[[#This Row],[Вид смеси]]=\"Бетонная смесь\",LEFTB(MID(Карта[[#This Row],[Условное обозначение]],SEARCH(\"П\",Карта[[#This Row],[Условное обозначение]])+0,99),SEARCH(\" F\",MID(Карта[[#This Row],[Условное обозначение]],SEARCH(\"П\",Карта[[#This Row],[Условное обозначение]])+0,99))),LEFTB(MID(Карта[[#This Row],[Условное обозначение]],SEARCH(\"П\",Карта[[#This Row],[Условное обозначение]])+0,99),SEARCH(\" Г\",MID(Карта[[#This Row],[Условное обозначение]],SEARCH(\"П\",Карта[[#This Row],[Условное обозначение]])+0,99)))),\"-\")","v":"-"},{"$f":"IFERROR(INDEX(Норматив[Параметры],MATCH(Карта[[#This Row],[Подвижность]],Норматив[Характеристика],1)),\"-\")","v":"-"},{"$f":"IF(Карта[[#This Row],[Вид смеси]]=\"Бетонная смесь\",\"воздухововлечение - 4-6%\",\"-\")","v":"-"}]
[{"$f":"IFERROR(IF(Карта[[#This Row],[Вид смеси]]=\"Бетонная смесь\",TRIM(LEFTB(SUBSTITUTE(MID(Карта[[#This Row],[Условное обозначение]],SEARCH(\" \",Карта[[#This Row],[Условное обозначение]])+1,99),\" \",REPT(\" \",99)),99)),TRIM(LEFTB(MID(Карта[[#This Row],[Условное обозначение]],SEARCH(\"М\",Карта[[#This Row],[Условное обозначение]])+0,99),SEARCH(\" П\",MID(Карта[[#This Row],[Условное обозначение]],SEARCH(\"М\",Карта[[#This Row],[Условное обозначение]])+0,99))))),\"-\")","v":"-"},null,null,{"$f":"IF(Карта[[#This Row],[Условное обозначение]]=\"\",\"\",IF(Карта[[#This Row],[Вид смеси]]=\"Бетонная смесь\",LEFTB(MID(Карта[[#This Row],[Условное обозначение]],SEARCH(\"F\",Карта[[#This Row],[Условное обозначение]])+0,99),SEARCH(\" Г\",MID(Карта[[#This Row],[Условное обозначение]],SEARCH(\"F\",Карта[[#This Row],[Условное обозначение]])+0,99))),LEFTB(MID(Карта[[#This Row],[Условное обозначение]],SEARCH(\"М\",Карта[[#This Row],[Условное обозначение]])+0,99),SEARCH(\" П\",MID(Карта[[#This Row],[Условное обозначение]],SEARCH(\"М\",Карта[[#This Row],[Условное обозначение]])+0,99)))))","v":""},null,{"$f":"IFERROR(IF(Карта[[#This Row],[Вид смеси]]=\"Бетонная смесь\",ROUND(RIGHT(Карта[[#This Row],[Класс]],LEN(Карта[[#This Row],[Класс]])-1)*$F$1,2),ROUND(RIGHT(Карта[[#This Row],[Класс]],LEN(Карта[[#This Row],[Класс]])-1)*$F$2,2)),\"-\")","v":"-"},{"$f":"IF(Карта[[#This Row],[Условное обозначение]]=\"\",\"\",Карта[[#This Row],[Прочность]]*70%)","v":""},null,{"$f":"IF(Карта[[#This Row],[Условное обозначение]]=\"\",\"\",$I$2)","v":""},null,{"$f":"IF(Карта[[#This Row],[Условное обозначение]]=\"\",\"\",Карта[[#This Row],[Расход цемента]]*Карта[[#This Row],[%, расход]]/100)","v":""},{"$f":"IF(Карта[[#This Row],[Условное обозначение]]=\"\",\"\",$L$2)","v":""},null,{"$f":"IF(Карта[[#This Row],[Условное обозначение]]=\"\",\"\",Карта[[#This Row],[Расход цемента]]*Карта[[#This Row],[%, расход2]]/100)","v":""},null,{"$f":"IFERROR(IF(Карта[[#This Row],[Вид смеси]]=\"Бетонная смесь\",LEFTB(MID(Карта[[#This Row],[Условное обозначение]],SEARCH(\"П\",Карта[[#This Row],[Условное обозначение]])+0,99),SEARCH(\" F\",MID(Карта[[#This Row],[Условное обозначение]],SEARCH(\"П\",Карта[[#This Row],[Условное обозначение]])+0,99))),LEFTB(MID(Карта[[#This Row],[Условное обозначение]],SEARCH(\"П\",Карта[[#This Row],[Условное обозначение]])+0,99),SEARCH(\" Г\",MID(Карта[[#This Row],[Условное обозначение]],SEARCH(\"П\",Карта[[#This Row],[Условное обозначение]])+0,99)))),\"-\")","v":"-"},{"$f":"IFERROR(INDEX(Норматив[Параметры],MATCH(Карта[[#This Row],[Подвижность]],Норматив[Характеристика],1)),\"-\")","v":"-"},{"$f":"IF(Карта[[#This Row],[Вид смеси]]=\"Бетонная смесь\",\"воздухововлечение - 4-6%\",\"-\")","v":"-"}]
[]
[null,null,"М100"]
[null,null,{"$f":"TRIM(LEFTB(SUBSTITUTE(MID(C16,SEARCH(\" \",C16)+1,99),\" \",REPT(\" \",99)),99))","v":"раствор"}]

{"sheet":"КлассМарка","index":4,"n_rows":18,"n_cols":4,"rows_kept":18,"cut":false,"hidden":false,"merged":[]}
["Столбец1","Класс/Марка",null,"Смесь"]
["Бетонная смесь","В5",null,"Бетонная смесь"]
["Бетонная смесь","В7,5",null,"Растворная смесь"]
["Бетонная смесь","В12,5"]
["Бетонная смесь","В15"]
["Бетонная смесь","В22,5"]
["Бетонная смесь","В25"]
["Бетонная смесь","В30"]
["Бетонная смесь","В35"]
["Бетонная смесь","В40"]
["Бетонная смесь","В45"]
["Бетонная смесь","В50"]
["Бетонная смесь","В60"]
["Растворная смесь","М100"]
["Растворная смесь","М150"]
["Растворная смесь","М200"]
["Растворная смесь","М250"]
["Растворная смесь","М300"]

{"sheet":"Норматив","index":5,"n_rows":11,"n_cols":3,"rows_kept":11,"cut":false,"hidden":false,"merged":[]}
[]
[null,"Характеристика","Параметры"]
[null,"П1","П1 (1-4 см)"]
[null,"П2","П2 (5-9 см)"]
[null,"П3","П3 (10-15 см)"]
[null,"П4","П4 (16-20 см)"]
[null,"П5","П5 (более 20 см)"]
[null,"Пк1","Пк1 (От 1 до 4 см, включ.)"]
[null,"Пк2","Пк2 (От 4 до 8 см, включ.)"]
[null,"Пк3","Пк3 (От 8 до 12 см, включ.)"]
[null,"Пк4","Пк4 (От 12 до 14 см, включ.)"]